bitfinex/quotes_ETHUSD_20250415
["timestamp","ask_amount","ask_price","bid_price","bid_amount"]
[1744692568782,5.252,1634.4,1634.2,0.34328387]
[1744692569229,5.252,1634.4,1634.2,6.46245387]
[1744692569889,5.252,1634.4,1634.2,6.11917]
[1744692570620,5.252,1634.4,1634.1,6.11935]
[1744692570982,13.199272,1634.4,1634.0,6.11993]
[1744692571315,7.080692,1634.4,1634.1,6.46219097]
[1744692571913,5.252,1634.4,1634.2,6.11915]
[1744692572722,5.252,1634.4,1634.2,12.23816]
[1744692573718,0.7985,1634.5,1634.2,0.8331]
[1744692573922,5.252,1634.6,1634.4,8.79265104]
[1744692574215,5.252,1634.6,1634.4,12.23661]
[1744692574418,5.252,1634.6,1634.4,6.1183]
[1744692574924,5.252,1634.6,1634.3,12.23746]
[1744692575917,5.252,1634.6,1634.4,6.11844]
[1744692576122,5.252,1634.6,1634.5,6.11807]
[1744692578022,5.252,1634.6,1634.4,6.11844]
[1744692578231,5.252,1634.6,1634.4,12.23668]
[1744692578592,5.252,1634.6,1634.5,6.11807]
[1744692580611,52.955,1634.8,1634.6,6.11769]
[1744692580825,52.955,1634.8,1634.6,12.23521]
[1744692582794,52.955,1634.8,1634.7,6.11733]
[1744692583890,0.8172,1635.0,1634.7,12.23466]
[1744692584094,5.252,1635.1,1634.9,6.1163]
[1744692584326,5.252,1635.1,1634.9,6.8826]
[1744692584494,5.252,1635.1,1634.8,6.1169]
[1744692585816,5.252,1635.1,1634.8,12.23365]
[1744692586021,5.252,1635.1,1634.9,6.11642]
[1744692586222,5.252,1635.1,1634.9,12.23287]
[1744692586531,5.252,1635.1,1634.9,6.11642]
[1744692587032,5.252,1635.1,1634.9,12.23283]
[1744692588230,5.252,1635.1,1634.9,6.11641]
[1744692589028,5.252,1635.1,1634.9,12.23278]
[1744692589229,5.252,1635.1,1635.0,6.1162]
[1744692591433,5.252,1635.1,1634.9,6.11637]
[1744692592738,5.252,1635.1,1634.9,12.23278]
[1744692592945,5.252,1635.1,1634.9,6.11637]
[1744692593246,5.252,1635.1,1635.0,6.1162]
[1744692593447,5.36767387,1635.1,1635.0,6.9299]
[1744692593863,0.11567387,1635.1,1635.0,6.99105644]
[1744692594014,0.11567387,1635.1,1635.0,9.66540748]
[1744692594349,5.251,1635.4,1635.2,6.11513]
[1744692594911,11.36576,1635.4,1635.0,7.27201015]
[1744692595138,0.8164,1635.3,1635.0,6.45831015]
[1744692595338,0.8164,1635.3,1635.0,6.51941752]
[1744692595542,0.8164,1635.3,1635.1,6.11553]
[1744692596851,5.251,1635.4,1635.2,12.23041]
[1744692598665,10.01363,1635.7,1635.6,6.11396]
[1744692598666,0.7719,1635.7,1635.6,6.11396]
[1744692598893,6.11219,1636.1,1635.7,6.11359]
[1744692598894,5.251,1635.8,1635.7,6.11359]
[1744692599071,6.11219,1636.1,1635.7,6.11359]
[1744692599072,0.7663,1636.0,1635.7,12.22718]
[1744692599237,6.0173,1636.0,1635.7,12.22718]
[1744692599652,6.0173,1636.0,1635.7,6.11359]
[1744692599856,6.0173,1636.0,1635.7,12.22705]
[1744692600654,6.0173,1636.0,1635.7,6.11346]
[1744692601065,6.0173,1636.0,1635.4,6.89501]
[1744692601066,6.11323,1635.8,1635.4,6.89501]
[1744692601263,0.7539,1635.7,1635.4,6.11441]
[1744692601469,6.86755,1635.7,1635.4,6.11441]
[1744692601871,0.7539,1635.7,1635.5,6.1143]
[1744692603252,0.7539,1635.7,1635.4,6.11441]
[1744692603456,11.36312,1635.6,1635.2,6.1154]
[1744692603673,17.47743,1635.6,1635.2,6.1154]
[1744692604339,11.36312,1635.6,1635.2,12.23067]
[1744692604540,11.36312,1635.6,1635.2,6.11527]
[1744692604734,5.249,1635.6,1635.3,6.11506]
[1744692606163,11.36298,1635.6,1635.3,6.11506]
[1744692606775,5.249,1635.6,1635.3,6.11506]
[1744692607571,5.249,1635.6,1635.2,6.17653832]
[1744692607774,5.249,1635.6,1635.5,6.11433]
[1744692607946,6.94048,1635.9,1635.5,12.22866]
[1744692608281,6.94048,1635.9,1635.3,9.54373104]
[1744692608282,0.8275,1635.9,1635.6,6.11375]
[1744692608570,5.249,1636.0,1635.8,12.22606]
[1744692608736,5.249,1636.0,1635.8,6.11301]
[1744692609875,5.249,1636.0,1635.9,6.11284]
[1744692610283,5.249,1636.0,1635.9,7.64833013]
[1744692610483,5.249,1636.0,1635.9,6.86714]
[1744692612490,47.696,1636.2,1636.1,6.11209]
[1744692612989,5.248,1636.3,1636.2,6.11172]
[1744692613181,5.248,1636.3,1636.1,6.11209]
[1744692613489,5.248,1636.3,1635.9,9.54149104]
[1744692613490,12.31296027,1636.3,1635.9,6.11284]
[1744692613970,0.11888217,1636.2,1635.9,6.11284]
[1744692614668,0.7828,1636.1,1635.7,6.92306]
[1744692614871,6.23915302,1636.0,1635.6,6.11396]
[1744692615072,6.0232,1635.9,1635.6,6.11396]
[1744692615271,0.12627497,1635.8,1635.6,6.11396]
[1744692615498,6.23967497,1635.8,1635.4,6.11449]
[1744692615698,0.7752,1635.7,1635.2,2.67435104]
[1744692615897,6.88954,1635.5,1635.2,6.11531]
[1744692616086,5.248,1635.4,1635.1,6.11582]
[1744692616285,5.248,1635.4,1635.0,6.11616]
[1744692616593,0.12395996,1635.3,1635.0,12.2322]
[1744692616892,5.248,1635.4,1635.1,6.11577]
[1744692617085,0.12395996,1635.2,1635.1,6.11577]
[1744692617257,5.248,1635.4,1635.1,6.11577]
[1744692617461,0.12395996,1635.3,1635.1,6.11577]
[1744692617675,5.248,1635.4,1635.1,6.11577]
[1744692618005,0.12395996,1635.2,1635.0,6.11604]
[1744692618310,0.12395996,1635.1,1635.0,9.11604]
[1744692618815,11.36277,1635.4,1635.0,15.23202]
[1744692618986,0.12395996,1635.1,1635.0,15.23202]
[1744692619191,11.36277,1635.4,1635.0,15.57375256]
[1744692619387,0.12395996,1635.1,1635.0,15.57375256]
[1744692619601,11.36277,1635.4,1635.0,15.57375256]
[1744692619779,0.12395996,1635.1,1635.0,15.57375256]
[1744692619979,11.36277,1635.4,1635.0,15.23202]
[1744692620210,0.12395996,1635.1,1635.0,15.23202]
[1744692620680,11.36277,1635.4,1635.0,15.23202]
[1744692620880,0.12395996,1635.1,1635.0,15.23202]
[1744692621114,11.36277,1635.4,1635.0,15.23202]
[1744692621282,0.12395996,1635.1,1635.0,15.23202]
[1744692621479,11.36277,1635.4,1635.0,15.57393466]
[1744692621674,5.248,1635.4,1635.3,6.11508]
[1744692621881,5.37195996,1635.4,1635.3,6.11508]
[1744692623111,5.37195996,1635.4,1635.2,6.11536]
[1744692623308,0.12395996,1635.4,1635.3,6.11508]
[1744692623875,5.249,1635.6,1635.3,12.23016]
[1744692624080,0.11995148,1635.5,1635.3,12.23016]
[1744692624313,0.11995148,1635.5,1635.4,6.11471]
[1744692625618,0.8052,1635.4,1635.1,6.11573]
[1744692626115,0.11630097,1635.3,1635.1,6.11573]
[1744692626485,6.91993,1635.4,1635.0,9.11619]
[1744692626718,0.11630097,1635.2,1635.0,9.11619]
[1744692626920,13.03487,1635.4,1635.0,9.11619]
[1744692627105,0.11630097,1635.1,1635.0,9.11619]
[1744692627307,13.03489,1635.4,1635.0,9.11619]
[1744692627506,0.11630097,1635.1,1635.0,9.11619]
[1744692627717,13.03489,1635.4,1635.0,9.11619]
[1744692628014,0.11630097,1635.1,1635.0,9.11619]
[1744692628217,6.91993,1635.4,1635.0,9.11619]
[1744692628383,0.11630097,1635.1,1635.0,9.11619]
[1744692628583,8.223362,1635.4,1635.0,9.116]
[1744692628785,0.8052,1635.4,1635.1,6.11551]
[1744692628999,6.0745,1635.6,1635.1,2.67435104]
[1744692629198,6.0745,1635.6,1635.3,6.11472]
[1744692630019,0.7898,1635.8,1635.4,6.11455]
[1744692630229,5.249,1635.9,1635.7,6.1134]
[1744692630547,5.249,1635.9,1635.5,9.54303104]
[1744692630828,0.7898,1635.7,1635.4,6.11461]
[1744692631041,6.1145,1635.5,1635.1,6.11582]
[1744692631198,12.17315,1635.4,1635.0,6.11607]
[1744692631397,18.28813,1635.4,1635.0,6.11607]
[1744692632336,6.11508,1635.3,1635.0,6.11607]
[1744692632714,6.11596,1635.1,1634.7,6.1173]
[1744692633027,13.04123,1635.1,1634.7,6.1173]
[1744692633333,5.265,1635.0,1634.7,6.1173]
[1744692633500,11.38145,1635.0,1634.6,6.11768]
[1744692634921,5.265,1635.0,1634.7,6.11709]
[1744692635516,5.265,1635.0,1634.8,6.11667]
[1744692636932,0.11434085,1634.9,1634.8,6.11667]
[1744692637502,0.11434085,1634.9,1634.8,8.79102104]
[1744692637931,6.0901,1635.3,1635.0,6.11603]
[1744692639251,6.0901,1635.3,1634.9,6.11648]
[1744692639430,12.20542,1635.3,1634.9,6.11648]
[1744692639628,18.32085,1635.3,1634.9,6.11648]
[1744692639830,20.152935,1635.3,1634.9,6.11648]
[1744692640172,6.11546,1635.2,1634.9,6.11648]
[1744692642070,14.037505,1635.3,1635.0,6.11618]
[1744692642272,7.922185,1635.3,1635.0,6.11618]
[1744692642626,7.922185,1635.3,1635.0,6.11607]
[1744692642866,6.0901,1635.3,1635.0,6.11607]
[1744692643989,12.20522,1635.3,1634.9,6.11656]
[1744692644131,18.32058,1635.3,1634.9,6.11656]
[1744692644669,18.32058,1635.3,1634.7,3.47895104]
[1744692644670,0.7947,1635.0,1634.7,6.11729]
[1744692645177,6.11659,1634.9,1634.5,14.91026104]
[1744692645323,11.38159,1634.9,1634.6,4.0]
[1744692645756,11.38159,1634.9,1634.7,0.34271262]
[1744692646479,0.7989,1634.8,1634.7,0.34271262]
[1744692646762,0.7989,1634.8,1634.5,6.11788]
[1744692647875,6.91585,1634.8,1634.5,6.11788]
[1744692648871,6.91585,1634.8,1634.4,6.11841]
[1744692649424,0.7989,1634.8,1634.5,6.11786]
[1744692653277,0.7989,1634.8,1634.3,3.44225104]
[1744692653278,0.7565,1634.9,1634.4,6.11845]
[1744692653448,5.266,1635.1,1635.0,6.1162]
[1744692654171,5.266,1635.1,1635.0,6.9289]
[1744692654582,6.0225,1635.4,1635.1,6.11563]
[1744692654744,6.0225,1635.4,1635.1,12.23124]
[1744692654745,0.7565,1635.4,1635.1,12.23124]
[1744692654949,5.266,1635.4,1635.2,6.11528]
[1744692655357,5.266,1635.4,1635.1,6.11561]
[1744692656077,5.266,1635.4,1635.0,0.8127]
[1744692656078,0.8213,1635.3,1635.0,6.11615]
[1744692656279,6.93639,1635.3,1634.9,6.11656]
[1744692656479,0.8213,1635.3,1635.0,12.23225]
[1744692657078,0.8213,1635.3,1635.1,6.11562]
[1744692657280,5.266,1635.4,1635.1,12.23124]
[1744692657487,6.0791,1635.4,1635.1,6.11562]
[1744692657790,12.19382,1635.4,1635.1,6.11562]
[1744692657987,13.413167,1635.4,1635.0,6.11617]
[1744692658650,19.528207,1635.4,1635.0,6.11617]
[1744692662498,13.413167,1635.4,1635.0,6.11604]
[1744692662664,19.528107,1635.4,1635.0,6.11604]
[1744692662864,13.413167,1635.4,1635.0,6.11604]
[1744692663568,13.413167,1635.4,1635.0,12.23203]
[1744692664092,13.413167,1635.4,1635.0,6.11599]
[1744692664391,13.413167,1635.4,1635.1,6.11572]
[1744692664593,6.0791,1635.4,1635.2,6.11532]
[1744692664796,5.264,1635.6,1635.5,6.11407]
[1744692665163,5.264,1635.6,1635.3,6.11503]
[1744692665497,0.8326,1635.3,1634.9,6.11656]
[1744692665689,11.37961,1635.2,1634.8,9.11689]
[1744692665885,11.37961,1635.2,1634.7,6.91458]
[1744692665886,6.94849,1635.1,1634.7,6.11728]
[1744692666198,7.93835104,1635.2,1634.6,6.1177]
[1744692666199,0.8326,1634.9,1634.6,6.1177]
[1744692666397,5.264,1634.8,1634.6,6.1177]
[1744692669303,5.264,1634.8,1634.6,12.2354]
[1744692669603,5.264,1634.8,1634.6,6.1177]
[1744692669902,5.264,1634.8,1634.6,12.2354]
[1744692670405,5.264,1634.8,1634.6,6.1177]
[1744692671402,5.264,1634.8,1634.6,12.23523]
[1744692672602,5.264,1634.8,1634.7,6.11733]
[1744692676318,5.264,1634.8,1634.7,8.79168104]
[1744692676488,5.265,1635.2,1635.0,6.11607]
[1744692677113,5.265,1635.2,1635.1,6.11583]
[1744692677412,5.265,1635.2,1634.9,6.11649]
[1744692677614,6.11586,1635.1,1634.8,6.11665]
[1744692678188,11.38077,1635.2,1634.8,6.11665]
[1744692678518,18.715717,1635.2,1634.8,6.11665]
[1744692679117,12.599947,1635.2,1634.8,12.2334]
[1744692679313,6.484177,1635.2,1634.9,6.11657]
[1744692679506,6.484177,1635.2,1634.9,6.11641]
[1744692679818,0.811,1635.3,1635.0,6.1162]
[1744692680013,5.265,1635.2,1635.0,6.1162]
[1744692680326,5.265,1635.2,1635.1,6.11583]
[1744692680728,5.265,1635.2,1635.0,6.11599]
[1744692681231,5.264,1635.3,1635.0,6.11599]
[1744692682744,0.7688,1635.2,1634.9,6.11657]
[1744692683947,6.88426,1635.2,1634.9,6.11657]
[1744692685298,6.11587,1635.1,1634.8,6.11692]
[1744692685565,6.11625,1635.0,1634.7,6.11727]
[1744692685714,6.0637,1634.9,1634.6,6.1177]
[1744692686047,6.0637,1634.9,1634.7,6.46025035]
[1744692686559,6.0637,1634.9,1634.6,6.11752]
[1744692687411,12.18036,1634.9,1634.6,6.11752]
[1744692687709,6.0637,1634.9,1634.6,6.11752]
[1744692687913,12.1804,1634.9,1634.5,13.01908]
[1744692688342,12.1804,1634.9,1634.6,6.1177]
[1744692688551,14.0712275,1634.9,1634.6,6.1177]
[1744692688902,7.9545275,1634.9,1634.6,12.23521]
[1744692689131,6.0637,1634.9,1634.6,12.23521]
[1744692689647,12.18028,1634.9,1634.6,6.11751]
[1744692690411,6.0637,1634.9,1634.6,6.11751]
[1744692690613,12.18048,1634.9,1634.5,6.90122]
[1744692690956,0.832,1634.6,1634.3,6.11864]
[1744692691452,0.832,1634.6,1634.4,0.34302868]
[1744692691906,0.832,1634.6,1634.4,6.46147868]
[1744692692356,0.832,1634.6,1634.4,6.11845]
[1744692692552,0.832,1634.6,1634.1,2.67435104]
[1744692692553,11.38911,1634.5,1634.1,13.01676]
[1744692693351,11.38911,1634.5,1634.2,0.34295643]
[1744692693553,5.271,1634.5,1634.2,0.34295643]
[1744692693778,6.91982,1634.3,1634.2,0.34295643]
[1744692694122,9.59417104,1634.3,1634.2,0.34295643]
[1744692694323,9.59417104,1634.3,1633.9,0.55]
[1744692694324,0.7902,1634.0,1633.9,0.55]
[1744692694539,6.0612,1634.0,1633.9,0.55]
[1744692696116,12.18115,1634.0,1633.9,0.55]
[1744692696314,8.1587311,1634.0,1633.9,0.55]
[1744692698663,6.0612,1634.0,1633.9,0.55]
[1744692698860,0.7757,1634.2,1633.9,0.55]
[1744692699031,6.0477,1634.2,1634.0,12.23954]
[1744692699222,6.0477,1634.2,1634.1,6.11957]
[1744692699422,5.272,1634.2,1634.1,6.11957]
[1744692699655,5.272,1634.2,1634.0,6.11977]
[1744692700467,5.272,1634.2,1633.9,6.67028]
[1744692700658,0.7757,1634.1,1633.9,6.67031]
[1744692700846,5.7992,1634.2,1634.0,6.11995]
[1744692703068,6.11811,1634.5,1634.1,6.11957]
[1744692703242,5.273,1634.3,1634.2,6.11906]
[1744692703563,5.273,1634.3,1634.1,6.11957]
[1744692704179,5.273,1634.3,1634.1,6.11934]
[1744692704482,5.273,1634.3,1634.2,6.1192]
[1744692705971,5.273,1634.3,1634.2,6.9362]
[1744692706590,5.273,1634.3,1634.2,6.1192]
[1744692711060,5.273,1634.3,1634.1,6.11934]
[1744692713181,5.273,1634.3,1634.1,12.23874]
[1744692713353,5.273,1634.3,1634.2,6.1192]
[1744692714991,0.769,1634.6,1634.3,6.11857]
[1744692715172,5.273,1634.5,1634.4,6.11812]
[1744692717191,5.273,1634.5,1634.4,12.23638]
[1744692718895,5.273,1634.5,1634.4,6.11812]
[1744692726605,5.273,1634.5,1634.3,6.11866]
[1744692726788,5.273,1634.5,1634.3,12.23733]
[1744692726994,5.273,1634.5,1634.3,12.2373]
[1744692727195,6.0484,1634.5,1634.3,6.11864]
[1744692728320,6.0484,1634.5,1634.3,6.11863]
[1744692728620,6.65324,1634.5,1633.9,1.3107]
[1744692728794,6.65324,1634.5,1633.9,6.67017]
[1744692728795,0.7777,1634.2,1633.9,6.67017]
[1744692728995,5.254,1634.1,1633.9,0.55]
[1744692729194,5.254,1634.1,1633.9,6.67012]
[1744692729491,5.254,1634.1,1634.0,6.11995]
[1744692731119,5.254,1634.1,1633.9,6.67012]
[1744692732311,6.469093,1634.1,1633.9,0.55]
[1744692732506,0.7622,1634.0,1633.9,0.55]
[1744692734618,9.55650104,1634.0,1633.9,0.55]
[1744692735826,13.10650104,1634.0,1633.9,0.55]
[1744692740224,12.55650104,1634.0,1633.9,0.55]
[1744692740428,15.07103044,1634.0,1633.9,0.55]
[1744692740593,3.2767294,1634.0,1633.9,0.55]
[1744692740927,9.3966794,1634.0,1633.9,0.55]
[1744692742743,8.5327294,1634.0,1633.9,0.55]
[1744692742901,6.0182,1634.0,1633.9,0.55]
[1744692744626,6.0182,1634.0,1633.7,6.12083]
[1744692744945,0.781,1634.2,1633.9,6.12032]
[1744692745160,0.781,1634.2,1633.8,0.8155]
[1744692745161,5.256,1634.1,1633.8,0.8155]
[1744692745444,0.5256,1634.0,1633.5,3.8155]
[1744692745631,5.256,1634.1,1633.8,6.12069]
[1744692745797,5.256,1634.1,1633.8,6.90059]
[1744692746001,11.37558,1634.1,1633.8,6.90059]
[1744692746836,5.256,1634.1,1633.8,6.90059]
[1744692747033,5.256,1634.1,1634.0,6.11995]
[1744692747835,5.256,1634.1,1633.8,6.90054]
[1744692748038,6.0289,1634.1,1633.8,6.90054]
[1744692749870,6.0289,1634.1,1633.8,13.02111]
[1744692750429,5.256,1634.1,1633.8,13.02111]
[1744692751277,5.256,1634.1,1634.0,6.11995]
[1744692751432,5.256,1634.1,1633.8,6.90056]
[1744692751860,5.256,1634.1,1633.8,6.12066]
[1744692752588,0.7582,1634.5,1634.0,0.8256]
[1744692752872,5.255,1634.4,1634.2,12.23809]
[1744692753164,5.255,1634.4,1634.2,6.11902]
[1744692753331,5.255,1634.4,1634.2,12.23803]
[1744692753531,5.255,1634.4,1634.3,6.94442]
[1744692754440,5.3,1634.7,1634.6,6.11761]
[1744692754978,9.9993,1635.1,1634.9,6.11644]
[1744692755178,5.3,1635.1,1635.0,6.1162]
[1744692760088,5.3,1635.1,1634.9,6.11636]
[1744692760461,5.3,1635.1,1634.8,6.11695]
[1744692760783,7.222951,1635.1,1634.8,6.11695]
[1744692761153,7.222951,1635.1,1634.8,6.1168]
[1744692761355,7.222951,1635.1,1634.8,6.11674]
[1744692761591,6.0814,1635.1,1634.9,6.1165]
[1744692761885,5.3,1635.1,1634.9,6.1165]
[1744692764056,5.3,1635.1,1634.8,6.11674]
[1744692764361,5.3,1635.1,1634.8,6.11682]
[1744692764561,5.3,1635.1,1634.9,6.11639]
[1744692765892,5.3,1635.1,1634.9,6.89758013]
[1744692766062,0.7897,1635.4,1634.9,8.79074104]
[1744692766267,6.0867,1635.5,1635.3,6.11508]
[1744692766491,5.297,1635.5,1635.3,6.11508]
[1744692766862,5.297,1635.5,1635.1,6.90792]
[1744692767086,11.41149,1635.5,1635.1,6.90792]
[1744692767290,11.41149,1635.5,1635.1,6.11562]
[1744692767490,6.93291,1635.4,1635.0,6.92876]
[1744692767800,6.11532,1635.3,1634.9,12.23301]
[1744692768300,6.11532,1635.3,1635.0,6.1162]
[1744692770784,6.11566,1635.2,1634.8,6.11694]
[1744692770989,5.296,1635.1,1635.0,6.1162]
[1744692771502,5.296,1635.1,1634.9,6.91324]
[1744692771678,5.296,1635.1,1634.9,6.11654]
[1744692772403,5.296,1635.1,1634.9,6.11643]
[1744692773700,5.296,1635.1,1635.0,6.9256]
[1744692776620,5.296,1635.1,1635.0,6.1162]
[1744692776816,5.296,1635.1,1634.8,6.92591]
[1744692777106,5.296,1635.1,1634.9,6.11657]
[1744692777301,5.296,1635.1,1634.9,6.11638]
[1744692777496,5.296,1635.1,1635.0,6.1162]
[1744692780405,5.296,1635.1,1634.9,12.23283]
[1744692780605,5.296,1635.1,1634.9,3.0]
[1744692780905,5.296,1635.1,1635.0,6.1162]
[1744692784110,5.296,1635.1,1635.0,6.45947555]
[1744692787539,0.802,1635.5,1635.0,1.10967555]
[1744692787824,6.092,1635.7,1635.5,6.11433]
[1744692790903,6.092,1635.7,1635.4,6.11468]
[1744692791934,12.20564,1635.7,1635.4,6.11468]
[1744692792836,6.092,1635.7,1635.4,12.22922]
[1744692793035,6.092,1635.7,1635.6,6.11396]
[1744692793233,5.29,1635.7,1635.6,6.11396]
[1744692793434,0.7558,1636.0,1635.5,6.92724587]
[1744692793606,6.0448,1636.0,1635.7,12.2265]
[1744692794311,6.0448,1636.0,1635.8,6.11318]
[1744692794508,0.11532068,1635.9,1635.8,6.11318]
[1744692794713,0.11532068,1635.9,1635.8,6.87088]
[1744692794936,0.11532068,1635.9,1635.8,6.11318]
[1744692797416,0.11532068,1635.9,1635.8,12.61715506]
[1744692797615,52.982,1636.3,1636.1,6.11182]
[1744692797816,0.12022,1636.2,1636.1,12.22367]
[1744692798251,0.12022,1636.2,1636.0,6.11241]
[1744692798434,0.92502,1636.2,1636.0,6.11241]
[1744692798943,0.92502,1636.2,1636.0,6.11227]
[1744692799116,0.12022,1636.2,1636.0,6.11227]
[1744692799851,0.12022,1636.2,1636.1,6.11209]
[1744692804763,0.05,1636.4,1636.3,6.11134]
[1744692805058,0.17111043,1636.4,1636.3,6.11134]
[1744692808361,0.17111043,1636.4,1636.2,6.11157]
[1744692808528,0.99641043,1636.4,1636.2,3.0]
[1744692808721,0.99641043,1636.4,1636.3,6.11134]
[1744692808722,0.17111043,1636.4,1636.3,6.11134]
[1744692810036,0.17111043,1636.4,1636.3,8.84679627]
[1744692810678,0.17111043,1636.4,1636.3,8.78569104]
[1744692811077,0.17111043,1636.4,1636.3,6.11134]
[1744692812750,0.17111043,1636.4,1636.3,6.17244528]
[1744692813094,0.17111043,1636.4,1636.3,11.84679632]
[1744692813279,0.17111043,1636.4,1636.3,12.59889104]
[1744692815978,0.17111043,1636.4,1636.3,13.14889104]
[1744692816680,0.17111043,1636.4,1636.3,13.488832]
[1744692818979,0.12111043,1636.4,1636.3,17.488832]
[1744692819158,7.84e-06,1636.4,1636.3,25.47018304]
[1744692819342,0.8039,1637.2,1637.1,6.10836]
[1744692819548,0.92160613,1637.2,1637.1,6.10836]
[1744692820347,0.92160613,1637.2,1637.0,6.10861]
[1744692820549,0.92160613,1637.2,1637.0,12.21718]
[1744692825400,0.92160613,1637.2,1637.1,6.10836]
[1744692825916,0.11770613,1637.2,1637.1,9.94754185]
[1744692826093,0.05,1637.4,1637.3,6.10761]
[1744692826310,0.16770613,1637.4,1637.3,6.10761]
[1744692826819,0.16770613,1637.4,1637.2,6.10783]
[1744692826820,0.92190613,1637.4,1637.2,6.10783]
[1744692827122,0.92190613,1637.4,1637.2,6.10784]
[1744692828015,0.92190613,1637.4,1637.1,15.21636]
[1744692828568,0.92190613,1637.4,1637.2,6.10796]
[1744692829718,0.92190613,1637.4,1637.3,6.10761]
[1744692830078,0.16770613,1637.4,1637.3,6.10761]
[1744692830812,0.16770613,1637.4,1637.2,6.10783]
[1744692830993,0.16770613,1637.4,1637.2,12.21559]
[1744692831517,0.16770613,1637.4,1637.2,6.10776]
[1744692831885,0.16770613,1637.4,1637.2,12.21556]
[1744692832422,0.16770613,1637.4,1637.2,6.10776]
[1744692832576,0.7941,1637.3,1637.2,6.10776]
[1744692832923,0.92114281,1637.3,1637.2,6.10776]
[1744692833305,0.92114281,1637.3,1637.0,12.2421827]
[1744692833815,0.92114281,1637.3,1637.1,6.1081]
[1744692834181,0.92114281,1637.3,1637.2,6.10798]
[1744692834692,0.12704281,1637.3,1637.2,6.10798]
[1744692834892,0.8412,1637.4,1637.2,12.21596]
[1744692835086,0.12704281,1637.3,1637.2,12.21596]
[1744692835370,0.8412,1637.4,1637.2,12.21596]
[1744692835706,0.12704281,1637.3,1637.2,12.21596]
[1744692835908,0.8412,1637.4,1637.2,6.10798]
[1744692836203,0.12704281,1637.3,1637.2,6.10798]
[1744692836586,0.8412,1637.4,1637.2,12.2158]
[1744692836788,0.12704281,1637.3,1637.2,12.2158]
[1744692837094,0.8412,1637.4,1637.2,12.2158]
[1744692837303,0.12704281,1637.3,1637.2,6.10782]
[1744692837480,0.8412,1637.4,1637.2,6.10782]
[1744692837680,0.12704281,1637.3,1637.2,6.10782]
[1744692837881,0.8412,1637.4,1637.2,6.10782]
[1744692838076,0.12704281,1637.3,1637.2,12.21563]
[1744692838305,0.8412,1637.4,1637.2,6.10781]
[1744692838507,0.12704281,1637.3,1637.2,6.10781]
[1744692838808,0.8412,1637.4,1637.3,6.10761]
[1744692839023,0.8412,1637.4,1637.2,6.10781]
[1744692839195,0.96824281,1637.4,1637.3,6.10761]
[1744692840289,0.96824281,1637.4,1637.2,6.10781]
[1744692840486,0.96824281,1637.4,1637.2,12.21559]
[1744692840691,0.96824281,1637.4,1637.2,6.10778]
[1744692840892,0.96824281,1637.4,1637.1,6.10831]
[1744692841281,0.96824281,1637.4,1637.1,6.10819]
[1744692841481,0.96824281,1637.4,1637.2,6.10777]
[1744692843514,0.96824281,1637.4,1637.0,6.9571627]
[1744692843710,7.07576281,1637.4,1637.0,6.9571627]
[1744692843911,0.96824281,1637.4,1637.2,6.10767]
[1744692844246,0.96824281,1637.4,1637.2,6.1103095]
[1744692846250,0.17704281,1637.4,1637.3,6.10761]
[1744692848347,0.17704281,1637.4,1637.3,9.96518309]
[1744692848555,0.17704281,1637.4,1637.3,10.30765941]
[1744692849070,0.17704281,1637.4,1637.3,10.24658632]
[1744692849221,0.17704281,1637.4,1637.3,10.30764405]
[1744692849645,0.17704281,1637.4,1637.3,10.24658632]
[1744692850046,0.17704281,1637.4,1637.3,6.45008632]
[1744692851936,0.93884281,1637.4,1637.3,0.34247632]
[1744692852116,0.93884281,1637.4,1637.2,6.1103095]
[1744692852544,0.93884281,1637.4,1637.2,0.0026395]
[1744692852732,6.23184281,1637.4,1637.2,0.0026395]
[1744692853656,6.23184281,1637.4,1637.2,6.1104795]
[1744692854355,6.23184281,1637.4,1637.2,0.0026395]
[1744692856052,12.33911281,1637.4,1637.2,0.0026395]
[1744692858862,11.57731281,1637.4,1637.2,0.0026395]
[1744692859026,0.794,1637.3,1637.2,0.0026395]
[1744692859423,0.92522001,1637.3,1637.2,0.0026395]
[1744692860040,0.92522001,1637.3,1637.0,0.0249527]
[1744692860041,7.03285001,1637.3,1637.0,0.0249527]
[1744692860258,7.03285001,1637.3,1637.1,0.34246738]
[1744692860464,8.27043501,1637.3,1637.1,0.34246738]
[1744692860939,8.27043501,1637.3,1637.0,0.0249527]
[1744692861660,2.16280501,1637.3,1637.0,6.1335327]
[1744692861977,0.92522001,1637.3,1637.0,6.1336427]
[1744692862664,7.03297001,1637.3,1637.0,6.1336427]
[1744692862853,7.03297001,1637.3,1637.0,0.0249527]
[1744692863157,7.03297001,1637.3,1637.0,6.1336627]
[1744692863389,13.14083001,1637.3,1637.0,0.0249527]
[1744692863782,7.03297001,1637.3,1637.0,0.0249527]
[1744692865884,6.10799,1637.2,1637.0,0.0249527]
[1744692866347,0.13122001,1637.1,1637.0,0.0249527]
[1744692866548,6.10799,1637.2,1637.0,0.0249527]
[1744692866750,0.13122001,1637.1,1637.0,0.0249527]
[1744692866946,6.10836,1637.1,1637.0,0.0249527]
[1744692867150,8.28851501,1637.1,1637.0,0.0249527]
[1744692868753,8.73667819,1637.1,1637.0,0.0249527]
[1744692871486,59.92167819,1637.1,1637.0,0.0249527]
[1744692872661,59.37167819,1637.1,1637.0,0.0249527]
[1744692873599,59.24045818,1637.1,1637.0,0.0249527]